fUSD/lending_fUSD_20241226
["ID","MTS","AMOUNT","RATE_DAILY","PERIOD"]
[346684675,1735180231872,-490.91,0.00011321,2]
[346684676,1735180231883,-509.08998538,0.00011323,2]
[346684677,1735180231894,-490.91001462,0.00011323,2]
[346684678,1735180231904,-300.0,0.00011337,2]
[346684679,1735180231913,-278.09827633,0.00011338,2]
[346684680,1735180231963,-6389.48044361,0.00011338,2]
[346684681,1735180231975,-1130.0,0.00011338,2]
[346684682,1735180232161,-1304.9999775,0.00011338,2]
[346684683,1735180232172,-405.22106279,0.00011338,2]
[346684684,1735180232183,-1885.24001276,0.00011338,2]
[346684685,1735180232194,-752.76793986,0.00011338,2]
[346684686,1735180232206,-18643.54228715,0.00011338,2]
[346684687,1735180232216,-566.76,0.00011353,2]
[346684688,1735180232226,-250.0,0.00011406,2]
[346684689,1735180232235,-4336.36611648,0.00011422,2]
[346684690,1735180232247,-810.44094657,0.00011422,2]
[346684691,1735180232347,-449.18293695,0.00011422,2]
[346684692,1735180232357,-995.18,0.00011428,2]
[346684693,1735180232366,-15917.91,0.0001168,2]
[346684694,1735180232376,-250.0,0.00011692,2]
[346684695,1735180232386,-400.0,0.00011765,2]
[346684696,1735180232397,-200.74,0.00011765,2]
[346684697,1735180232407,-164.36,0.00011853,2]
[346684698,1735180232416,-201.09,0.00011853,2]
[346684699,1735180232425,-200.25,0.00011853,2]
[346684700,1735180232434,-200.88,0.00011853,2]
[346684701,1735180232443,-201.15,0.00011853,2]
[346684702,1735180232453,-203.56,0.00011854,2]
[346684703,1735180232462,-202.32,0.00011854,2]
[346684704,1735180232471,-201.54,0.00011855,2]
[346684705,1735180232480,-202.77,0.00011858,2]
[346684706,1735180232489,-203.2,0.00011862,2]
[346684707,1735180232498,-201.79,0.00011862,2]
[346684708,1735180232508,-203.22,0.00011862,2]
[346684709,1735180232517,-200.2,0.00011862,2]
[346684710,1735180232527,-200.95,0.00011862,2]
[346684711,1735180232537,-203.06,0.00011862,2]
[346684712,1735180232546,-201.83,0.00011862,2]
[346684713,1735180232556,-203.43,0.00011862,2]
[346684714,1735180232565,-202.17,0.00011862,2]
[346684715,1735180232576,-202.15,0.00011862,2]
[346684716,1735180232587,-203.2,0.00011862,2]
[346684717,1735180232598,-200.71,0.00011862,2]
[346684718,1735180232607,-201.19,0.00011862,2]
[346684719,1735180232616,-1005.72097536,0.00011864,2]
[346684720,1735180232625,-416.35,0.00011866,2]
[346684721,1735180232634,-1002.15,0.00011866,2]
[346684722,1735180232643,-200.2,0.00011873,2]
[346684723,1735180232653,-202.3,0.00011873,2]
[346684724,1735180232662,-202.47,0.00011875,2]
[346684725,1735180232672,-202.36,0.00011875,2]
[346684726,1735180232681,-21106.96175481,0.0001188,2]
[346684727,1735180232694,-371.63,0.00012062,2]
[346684728,1735180232704,-458.808,0.0001235,2]
[346684729,1735180232714,-202.55,0.0001235,2]
[346684730,1735180232724,-203.7,0.0001235,2]
[346684731,1735180232733,-202.54,0.0001235,2]
[346684732,1735180232743,-317.0,0.00012454,2]
[346684733,1735180232752,-437.27,0.00012685,2]
[346684734,1735180232762,-437.27,0.00012685,2]
[346684735,1735180232772,-437.27,0.00012685,2]
[346684736,1735180232782,-440.46994844,0.00012733,2]
[346684737,1735180232792,-490.91,0.00012736,2]
[346684738,1735180232801,-1000.0,0.00012738,2]
[346684739,1735180232810,-150.0,0.00012751,2]
[346684740,1735180232820,-1002.26,0.000128,2]
[346684741,1735180232830,-150.0,0.00012855,2]
[346684742,1735180232839,-3907.285,0.00012863,2]
[346684743,1735180232849,-635.522,0.00012863,2]
[346684744,1735180232858,-150.837,0.00012863,2]
[346684745,1735180232867,-679.133,0.00012863,2]
[346684746,1735180232877,-1962.8378,0.000129,2]
[346684747,1735180232888,-5571.8226,0.000129,2]
[346684748,1735180232898,-206.0008416,0.000129,2]
[346684749,1735180232907,-1804.233,0.000129,2]
[346684750,1735180232917,-164.47535212,0.000129,2]
[346684751,1735180232926,-1805.6092,0.000129,2]
[346684752,1735180232935,-156.16441835,0.000129,2]
[346684753,1735180232944,-4243.01463275,0.000129,2]
[346684754,1735180232953,-6327.37802164,0.000129,2]
[346684755,1735180232963,-233.50879136,0.000129,2]
[346684756,1735180232973,-1500.0,0.00012927,2]
[346684757,1735180232982,-6415.32780342,0.00012944,2]
[346684758,1735180232992,-200.0,0.00012946,2]
[346684759,1735180233002,-200.0,0.00012949,2]
[346684760,1735180233012,-613.0,0.00012972,2]
[346684761,1735180233023,-500.22265979,0.00012973,2]
[346684762,1735180233033,-502.37446571,0.00012973,2]
[346684763,1735180233043,-500.0,0.00012973,2]
[346684764,1735180233053,-162.02792649,0.00012973,2]
[346684765,1735180233063,-449.1157203,0.0001299,2]
[346684766,1735180233072,-449.1157203,0.0001299,2]
[346684767,1735180233081,-449.1157203,0.0001299,2]
[346684768,1735180233091,-158.6044845,0.00012996,2]
[346684769,1735180233101,-962.4271723,0.00012996,2]
[346684770,1735180233111,-615.2684108,0.00012999,2]
[346684771,1735180233121,-372.14495154,0.00012999,2]
[346684772,1735180233130,-5602.85191509,0.00012999,2]
[346684775,1735180237754,-1939.6,0.00011314,2]
[346684776,1735180237770,-2503.28177065,0.00011314,2]
[346684777,1735180237781,-1153.30311016,0.00011314,2]
[346684780,1735180238065,-311.184893,0.00011314,2]
[346684971,1735180239833,-521.765,0.00011314,2]
[346685252,1735180242785,-10507.23522619,0.00011314,2]
[346685253,1735180242795,-172.696,0.00012863,2]
[346685254,1735180242804,-216.9189116,0.00012996,2]
[346685255,1735180242813,-50090.19390266,0.00012999,2]
[346685256,1735180242825,-1136.20222984,0.00012999,2]
[346685257,1735180242836,-500.99454026,0.00012999,2]
[346685261,1735180245868,-378.78294716,0.00012999,2]
[346685262,1735180245880,-813.5,0.00012999,2]
[346685263,1735180245975,-24582.86109472,0.00012999,2]
[346685264,1735180245987,-7856.74941346,0.00012999,2]
[346685265,1735180245996,-718.06024744,0.00013,2]
[346685266,1735180246005,-17033.6358883,0.00013,2]
[346685274,1735181032847,-4200.0,0.00014,30]
[346685275,1735181032889,-158.78,0.00016658,30]
[346685276,1735181032925,-1000.0,0.00017654,30]
[346685277,1735181032961,-707.82039787,0.00018,30]
[346685278,1735181032985,-5042.31981,0.0001824,30]
[346685279,1735181033008,-152.0,0.00018364,30]
[346685280,1735181033030,-152.0,0.00018482,31]
[346685281,1735181033055,-152.0,0.000186,32]
[346685282,1735181033077,-1000.0,0.00018744,31]
[346685283,1735181033105,-2684.81,0.000189,31]
[346685284,1735181033132,-2684.81,0.000189,31]
[346685285,1735181033156,-2684.81,0.000189,31]
[346685286,1735181033180,-2684.81,0.000189,31]
[346685287,1735181033204,-2684.81,0.000189,31]
[346685288,1735181033228,-2684.81,0.000189,31]
[346685289,1735181033253,-2684.81,0.000189,31]
[346685290,1735181033276,-2684.81,0.000189,31]
[346685291,1735181033300,-2684.81,0.000189,31]
[346685292,1735181033324,-2684.81,0.000189,31]
[346685293,1735181033348,-2684.81,0.000189,31]
[346685294,1735181033372,-2684.81,0.000189,31]
[346685295,1735181033396,-2684.81,0.000189,31]
[346685296,1735181033421,-2532.54979213,0.000189,31]
[346685314,1735181431966,-336.72,0.00010137,2]
[346685315,1735181431975,-113.933,0.00010237,2]
[346685316,1735181431987,-186.067,0.00010237,2]
[346685317,1735181431997,-2446.0,0.00010238,2]
[346685318,1735181432006,-2446.0,0.00010238,2]
[346685319,1735181432015,-2446.0,0.00010238,2]
[346685320,1735181432025,-2446.0,0.00010238,2]
[346685321,1735181432034,-1000.0,0.00011879,2]
[346685322,1735181432043,-370.63,0.0001188,2]
[346685323,1735181432052,-250.0,0.00011882,2]
[346685324,1735181432061,-171.87428165,0.00011889,2]
[346685327,1735181432412,-364.29571835,0.00011889,2]
[346685328,1735181432422,-163.3,0.00011891,2]
[346685329,1735181432431,-6195.60721689,0.00012,2]
[346685330,1735181432442,-15595.39278311,0.00012,2]
[346685331,1735181432451,-434.09,0.00012096,2]
[346685332,1735181432460,-440.057,0.0001235,2]
[346685333,1735181432469,-150.0,0.00012712,2]
[346685334,1735181432478,-150.0,0.00012744,2]
[346685336,1735181432487,-150.0,0.000128,2]
[346685338,1735181432496,-150.0,0.000128,2]
[346685340,1735181432506,-318.96178267,0.00012823,2]
[346685342,1735181432515,-318.96178262,0.00012832,2]
[346685344,1735181432524,-318.96178262,0.0001284,2]
[346685346,1735181432534,-318.96178262,0.00012849,2]
[346685348,1735181432543,-318.96178262,0.00012857,2]
[346685350,1735181432552,-318.96178262,0.00012866,2]
[346685352,1735181432561,-318.96178262,0.00012874,2]
[346685354,1735181432570,-318.96178262,0.00012883,2]
[346685356,1735181432581,-318.96178262,0.00012891,2]
[346685358,1735181432590,-1335.3,0.000129,2]
[346685360,1735181432599,-162.02017221,0.000129,2]
[346685362,1735181432609,-1443.387,0.000129,2]
[346685364,1735181432618,-5000.0,0.000129,2]
[346685366,1735181432627,-321.33,0.000129,2]
[346685368,1735181432636,-150.0,0.000129,2]
[346685370,1735181432645,-150.0,0.000129,2]
[346685372,1735181432655,-53569.50342727,0.000129,2]
[346685377,1735181432713,-46464.22873674,0.000129,2]
[346685378,1735181432723,-28473.20109715,0.000129,2]
[346685379,1735181432733,-318.96178262,0.000129,2]
[346685380,1735181432744,-150.0,0.00012923,2]
[346685381,1735181432754,-500.0,0.00012973,2]
[346685382,1735181432763,-500.0,0.00012973,2]
[346685383,1735181432774,-500.0,0.00012973,2]
[346685384,1735181432784,-1268.668,0.00012979,2]
[346685385,1735181432793,-1506.49598738,0.00012979,2]
[346685386,1735181432804,-510.74201262,0.00012979,2]
[346685387,1735181432814,-633.0,0.00012979,2]
[346685388,1735181432823,-45.62499138,0.00012979,2]
[346685389,1735181432837,-521.12300862,0.00012979,2]
[346685390,1735181432846,-150.307,0.00012979,2]
[346685391,1735181432856,-1904.788,0.00012979,2]
[346685392,1735181432865,-1260.029,0.00012979,2]
[346685393,1735181432874,-1188.75299138,0.00012979,2]
[346685394,1735181437827,-2592.17700862,0.00012979,2]
[346685395,1735181437842,-927.206,0.00012979,2]
[346685396,1735181437853,-820.0,0.00012979,2]
[346685397,1735181437863,-3695.269,0.00012979,2]
[346685398,1735181437873,-537.384,0.00012979,2]
[346685399,1735181437883,-150.0,0.00012979,2]
[346685400,1735181437892,-150.2,0.00012979,2]
[346685401,1735181437902,-3888.0,0.00012979,2]
[346685402,1735181437911,-223.46125784,0.0001299,2]
[346685403,1735181437920,-223.46125784,0.0001299,2]
[346685404,1735181437930,-500.0,0.00012999,2]
[346685405,1735181437939,-500.0,0.00012999,2]
[346685406,1735181437948,-336.88048585,0.00012999,2]
[346685407,1735181437958,-500.0,0.00012999,2]
[346685408,1735181437967,-500.0,0.00012999,2]
[346685409,1735181437976,-500.0,0.00012999,2]
[346685410,1735181437986,-174.03302364,0.00012999,2]
[346685411,1735181437996,-559.0,0.00013,2]
[346685412,1735181438005,-359.03012372,0.00013,2]
[346685413,1735181438015,-14353.97684249,0.00013,2]
[346685414,1735181438027,-304.57,0.00013,2]
[346685415,1735181438038,-632.34002,0.00013,2]
[346685416,1735181438050,-9985.0,0.00013,2]
[346685417,1735181438061,-451.15504761,0.00013,2]
[346685418,1735181438072,-977.3250463,0.00013,2]
[346685419,1735181438086,-9263.33702543,0.00013,2]
[346685425,1735181438206,-266.65237705,0.00013,2]
[346685428,1735181438218,-722.130003,0.00013,2]
[346685452,1735181438398,-3573.98980047,0.00013,2]
[346685457,1735181438459,-290.811,0.00013,2]
[346685459,1735181438470,-969.9562184,0.00013,2]
[346685461,1735181438481,-1536.83382666,0.00013,2]
[346685463,1735181438492,-1336.06591152,0.00013,2]
[346685465,1735181438503,-24122.75836702,0.00013,2]
[346685467,1735181438513,-50287.36812317,0.00013,2]
[346685470,1735181438525,-684.05766734,0.00013,2]
[346685472,1735181438534,-179776.6666714,0.00013,2]
[346685541,1735181439211,-30127.93994645,0.00013,2]
[346685634,1735181440227,-255.11749626,0.000129,2]
[346685636,1735181440236,-92.27250372,0.00013,2]
[346685638,1735181440247,-307.71169007,0.00013,2]
[346685640,1735181440259,-6315.3454475,0.00013,2]
[346685643,1735181440270,-3591.86537889,0.00013,2]
[346685645,1735181440281,-372.80077324,0.00013,2]
[346685647,1735181440293,-5589.9701285,0.00013,2]
[346685649,1735181440304,-821.37766856,0.00013,2]
[346685657,1735181440366,-1095.6062822,0.00013,2]
[346685659,1735181440377,-3999.64712997,0.00013,2]
[346685661,1735181440388,-223815.58929628,0.00013,2]
[346685670,1735181440468,-3012620.21135672,0.00013,2]
[346685672,1735181440479,-1469.6911387,0.00013,2]
[346685940,1735181443055,-6584.17930504,0.00013,2]
[346685958,1735181443216,-1499.6544702,0.00013,2]
[346685960,1735181443228,-28930.52495278,0.00013,2]
[346685963,1735181443239,-16268.07293523,0.00013,2]
[346685977,1735181443367,-1347.15061902,0.00013,2]
[346686236,1735181445859,-500.0,0.00012973,2]
[346686238,1735181445871,-356.20926424,0.00013,2]
[346686240,1735181445882,-1754.03739691,0.00013,2]
[346686242,1735181445893,-546.006,0.00013,2]
[346686244,1735181445906,-340.762495,0.00013,2]
[346686256,1735181446011,-362.02612854,0.00013,2]
[346686259,1735181446023,-719.95798759,0.00013,2]
[346686262,1735181446051,-937.69234994,0.00013,2]
[346686292,1735181446331,-12082.07318267,0.00013,2]
[346686294,1735181446348,-912.34615092,0.00013,2]
[346686297,1735181446360,-6700.0,0.00013,2]
[346686299,1735181446372,-34249.2830118,0.00013,2]
[346686301,1735181446383,-40696.12942058,0.00013,2]
[346686303,1735181446396,-8613.29244594,0.00013,2]
[346686305,1735181446407,-10703.28618068,0.00013,2]
[346687471,1735182396108,-208.49821195,0.00010137,2]
[346687495,1735182632467,-366.43,0.00010068,2]
[346687497,1735182632477,-0.15178805,0.00010137,2]
[346687499,1735182632490,-254.95509761,0.00011567,2]
[346687501,1735182632499,-686.15755849,0.00011633,2]
[346687503,1735182632511,-370.84244151,0.00011633,2]
[346687505,1735182632520,-151.0,0.00011667,2]
[346687507,1735182632531,-490.74,0.00012161,2]
[346687509,1735182632540,-992.88839168,0.000122,2]
[346687511,1735182632551,-7.11160832,0.000122,2]
[346687513,1735182632562,-2000.0,0.00012217,2]
[346687515,1735182632571,-185.31,0.00012245,2]
[346687517,1735182632580,-1057.0,0.00012246,2]
[346687519,1735182632592,-250.0,0.00012254,2]
[346687521,1735182632601,-366.43,0.00012332,2]
[346687523,1735182632610,-421.858,0.0001235,2]
[346687525,1735182632619,-436.52,0.00012378,2]
[346687527,1735182632629,-436.52,0.00012378,2]
[346687529,1735182632638,-436.52,0.00012378,2]
[346687531,1735182632647,-150.0,0.00012578,2]
[346687533,1735182632656,-977.37,0.00012578,2]
[346687535,1735182632665,-256.06118144,0.00012701,2]
[346687537,1735182632675,-3339.71383028,0.000128,2]
[346687577,1735182637926,-3574.0,0.000128,2]
[346687578,1735182638154,-115021.91019956,0.000128,2]
[346687579,1735182638168,-50000.0,0.000128,2]
[346687580,1735182638178,-1057.0,0.0001289,2]
[346687581,1735182638187,-2000.0,0.00012896,2]
[346687582,1735182638198,-200.0,0.00012896,2]
[346687583,1735182638208,-191.3276945,0.000129,2]
[346687584,1735182638218,-162.02017221,0.000129,2]
[346687585,1735182638227,-172.18196126,0.000129,2]
[346687586,1735182638236,-4017.2038,0.000129,2]
[346687587,1735182638246,-22778.56087772,0.000129,2]
[346687588,1735182638255,-155.67252758,0.000129,2]
[346687589,1735182638265,-1154.709,0.00012901,2]
[346687590,1735182638274,-507.98029129,0.00012973,2]
[346687591,1735182638284,-500.0,0.00012973,2]
[346687592,1735182638294,-500.0,0.00012973,2]
[346687593,1735182638303,-501.43318598,0.00012973,2]
[346687594,1735182638313,-500.82049059,0.00012973,2]
[346687595,1735182638322,-160.34171367,0.00012973,2]
[346687596,1735182638332,-161.42511374,0.00012973,2]
[346687597,1735182638343,-275.76326174,0.00012973,2]
[346687598,1735182638353,-160.3409569,0.00012973,2]
[346687599,1735182638363,-500.0,0.00012973,2]
[346687600,1735182638373,-227.12240462,0.00012973,2]
[346687601,1735182638382,-150.0,0.00012979,2]
[346687602,1735182638392,-565.0,0.00012979,2]
[346687603,1735182638402,-1551.0,0.00012986,2]
[346687604,1735182638414,-800.0,0.00012986,2]
[346687605,1735182638423,-361.9234764,0.0001299,2]
[346687606,1735182638433,-361.9234764,0.0001299,2]
[346687608,1735182638442,-361.9234764,0.0001299,2]
[346687610,1735182638452,-934.22966167,0.00012998,4]
[346687612,1735182638462,-500.0,0.00012999,2]
[346687614,1735182638471,-241.55922485,0.00012999,2]
[346687616,1735182638480,-775.0,0.00013,2]
[346687618,1735182638490,-179.51506186,0.00013,2]
[346687620,1735182638503,-48968.4336677,0.00013,2]
[346687622,1735182638515,-960.0,0.00013,2]
[346687624,1735182638526,-10102.50866934,0.00013,2]
[346687626,1735182638535,-1608.02682589,0.00013,2]
[346687628,1735182638548,-31399.73163915,0.00013,2]
[346687630,1735182638560,-3143.84242347,0.00013,2]
[346687632,1735182638572,-312.31536098,0.00013,2]
[346687644,1735182638675,-89615.78995364,0.00013,2]
[346687647,1735182638687,-49509.9,0.00013,2]
[346687649,1735182638699,-1161.4798076,0.00013,2]
[346687746,1735182640281,-24571.526139,0.00013,2]
[346687747,1735182640293,-5662.04843797,0.00013,2]
[346687748,1735182640304,-1983.63196406,0.00013,2]
[346687749,1735182640316,-645.04661009,0.00013,2]
[346687750,1735182640327,-10061.71747772,0.00013,2]
[346687751,1735182640339,-4764.15905,0.00013,2]
[346687752,1735182640350,-2905.38,0.00013,2]
[346687753,1735182640361,-8950.54253969,0.00013,2]
[346687754,1735182640412,-4965.55,0.00013,2]
[346687755,1735182640424,-305.0000025,0.00013,2]
[346687756,1735182640435,-1505.65257975,0.00013,2]
[346687757,1735182640452,-332.0700039,0.00013,2]
[346687758,1735182640468,-395.472,0.00013,2]
[346687759,1735182640479,-264.339999,0.00013,2]
[346687791,1735182641048,-692.085,0.00013,2]
[346687794,1735182641059,-1431.83,0.00013,2]
[346688005,1735182643056,-697.0,0.00013,2]
[346688007,1735182643065,-782.82406548,0.00013,2]
[346688009,1735182643076,-1200.54526456,0.00013,2]
[346688012,1735182643087,-1098.44735005,0.00013,2]
[346688014,1735182643100,-913.15698188,0.00013,2]
[346688016,1735182643111,-5727.48171869,0.00013,2]
[346688028,1735182643216,-16083.3999978,0.00013,2]
[346688031,1735182643227,-744.79128,0.00013,2]
[346688033,1735182643238,-846.0,0.00013,2]
[346688035,1735182643249,-495.58079881,0.00013,2]
[346688037,1735182643260,-2187.3,0.00013,2]
[346688061,1735182643572,-537.35,0.00013,2]
[346688063,1735182643584,-2613.24932791,0.00013,2]
[346688066,1735182643598,-1711.87058023,0.00013,2]
[346688068,1735182643610,-2288.40477197,0.00013,2]
[346688155,1735182646110,-181723.3977505,0.00013,2]
[346688156,1735182646122,-80692.50987914,0.00013,2]
[346688157,1735182646131,-112649.49407874,0.00013,2]
[346688158,1735182646142,-7858.73569701,0.00013,2]
[346688159,1735182646153,-3622.53010337,0.00013,2]
[346688160,1735182646164,-345.27883011,0.00013,2]
[346688161,1735182646175,-7178.54694628,0.00013,2]
[346688162,1735182646325,-576.70999178,0.00013,2]
[346688163,1735182646336,-1104.89183922,0.00013,2]
[346688164,1735182646351,-8022.0,0.00013,2]
[346688165,1735182646362,-1460.90491035,0.00013,2]
[346688166,1735182646373,-409.73211,0.00013,2]
[346688167,1735182646385,-328.68581002,0.00013,2]
[346688168,1735182646396,-219884.67494037,0.00013,2]
[346688169,1735182646407,-9733.8571043,0.00013,2]
[346688172,1735182646576,-510.20760431,0.00013,2]
[346688174,1735182646587,-393101.7656383,0.00013,2]
[346688176,1735182646600,-8190.0,0.00013,2]
[346688179,1735182646612,-35157.00000075,0.00013,2]
[346688181,1735182646623,-18627.36015014,0.00013,2]
[346688183,1735182646633,-4085.72514336,0.00013,2]
[346688185,1735182646644,-1559.8574844,0.00013,2]
[346688483,1735183832853,-329.78,0.00010131,2]
[346688484,1735183832864,-2609.74,0.0001198,2]
[346688485,1735183832878,-5923.53450374,0.0001198,2]
[346688486,1735183832890,-250.0,0.00011988,2]
[346688487,1735183832900,-185.31,0.00012202,2]
[346688488,1735183832909,-347.27,0.00012249,2]
[346688489,1735183832919,-1000.0,0.00012296,2]
[346688490,1735183832928,-421.04,0.0001235,2]
[346688491,1735183832937,-329.78,0.00012395,2]
[346688492,1735183832947,-1475.43313117,0.00012436,2]
[346688493,1735183832958,-6155.56037242,0.00012436,2]
[346688494,1735183832968,-169.85,0.00012643,2]
[346688495,1735183832977,-322.34219121,0.00012655,2]
[346688496,1735183832986,-618.0,0.000127,5]
[346688497,1735183832996,-150.0,0.000127,2]
[346688498,1735183833005,-150.0,0.000127,2]
[346688499,1735183833015,-150.0,0.000127,2]
[346688500,1735183833025,-62.86526091,0.000127,2]
[346688501,1735183833037,-87.13473909,0.000127,2]
[346688502,1735183833046,-1715.62,0.000127,2]
[346688503,1735183833055,-437.27,0.000127,2]
[346688504,1735183833065,-436.52,0.000127,2]
[346688505,1735183833074,-436.52,0.000127,2]
[346688506,1735183833084,-437.27,0.000127,2]
[346688507,1735183833093,-325.2893,0.000129,2]
[346688508,1735183833103,-1662.72274432,0.000129,2]
[346688509,1735183833191,-6039.24515316,0.000129,2]
[346688510,1735183833202,-10706.81711968,0.000129,2]
[346688511,1735183833263,-1867.62281906,0.000129,2]
[346688512,1735183833274,-274.11960328,0.000129,2]
[346688513,1735183833286,-454.92529219,0.000129,2]
[346688514,1735183838248,-630.0,0.000129,2]
[346688515,1735183838510,-1443.58737734,0.000129,2]
[346688516,1735183838521,-546.4914224,0.000129,2]
[346688643,1735183840261,-29666.67096857,0.000129,2]
[346688644,1735183840271,-162.02017219,0.000129,2]
[346688645,1735183840281,-156.16441834,0.000129,2]
[346688646,1735183840290,-1971.92,0.000129,2]
[346688647,1735183840300,-150.0,0.000129,2]
[346688648,1735183840310,-150.5,0.000129,2]
[346688649,1735183840319,-436.42,0.000129,2]
[346688650,1735183840328,-150.0,0.000129,2]
[346688651,1735183840337,-150.0,0.000129,2]
[346688652,1735183840347,-170.07833084,0.000129,2]
[346688653,1735183840356,-297.04414165,0.000129,2]
[346688654,1735183840366,-159.11229913,0.000129,2]
[346688655,1735183840375,-505.83885586,0.00012973,2]
[346688656,1735183840387,-618.08275449,0.00012973,2]
[346688657,1735183840396,-297.04414157,0.00012978,2]
[346688658,1735183840406,-1752.8962,0.00012979,2]
[346688659,1735183840415,-635.0,0.00012979,2]
[346688660,1735183840426,-1041.87450953,0.00012996,2]
[346688661,1735183840436,-500.0,0.00012999,2]
[346688662,1735183840446,-1000.0,0.00012999,2]
[346688663,1735183840455,-680.0,0.00013,2]
[346688664,1735183840464,-166.228,0.00013,2]
[346688665,1735183840474,-1525.8780258,0.00013,2]
[346688666,1735183840484,-157546.54588698,0.00013,2]
[346688667,1735183840572,-530.69259837,0.00013,2]
[346688696,1735183843851,-17385.31499341,0.00013,2]
[346688972,1735183846365,-371989.49913685,0.00013,2]
[346688974,1735183846374,-68223.82340765,0.00013,2]
[346688976,1735183846387,-60250.10596605,0.00013,2]
[346689333,1735184074916,30044.0,0.00021,120]
[346689508,1735185032482,-319.88,0.00010137,2]
[346689509,1735185032494,-296.8,0.00010395,2]
[346689510,1735185032503,-1000.0,0.00012308,2]
[346689511,1735185032514,-277.81,0.00012334,2]
[346689512,1735185032524,-322.21,0.0001235,2]
[346689513,1735185032536,-81.252,0.0001235,2]
[346689514,1735185032545,-10855.0330705,0.0001235,2]
[346689515,1735185032689,-1322.22029579,0.0001235,2]
[346689516,1735185032702,-4866.81369435,0.0001235,2]
[346689517,1735185032712,-1000.0,0.0001235,2]
[346689528,1735185041003,-3771.40433803,0.0001235,2]
[346689531,1735185041015,-619.25860133,0.0001235,2]
[346689532,1735185041024,-250.0,0.00012353,2]
[346689533,1735185041033,-392.59,0.00012394,2]
[346689534,1735185041043,-296.8,0.00012659,2]
[346689535,1735185041052,-3715.69823783,0.000129,2]
[346689537,1735185044087,-688.49999868,0.000129,2]
[346689538,1735185044099,-3514.27636349,0.000129,2]
[346689539,1735185044109,-741.4437,0.000129,2]
[346689540,1735185044119,-162.02017219,0.000129,2]
[346689541,1735185044128,-135.45994232,0.000129,2]
[346689542,1735185044141,-158.78005768,0.000129,2]
[346689543,1735185044150,-148.50019996,0.000129,2]
[346689545,1735185044502,-288.76980004,0.000129,2]
[346689546,1735185044512,-237.63531331,0.000129,2]
[346689547,1735185044522,-159.11229912,0.000129,2]
[346689548,1735185044532,-170.07833084,0.000129,2]
[346689549,1735185044542,-1467.503,0.00012973,2]
[346689550,1735185044551,-500.0,0.00012999,2]
[346689551,1735185044561,-511.0,0.00013,2]
[346689552,1735185044570,-762.9390129,0.00013,2]
[346689553,1735185044579,-25545.69318579,0.00013,2]
[346689554,1735185044670,-181570.27643026,0.00013,2]
[346689555,1735185046399,-1663.391616,0.00013,2]
[346689556,1735185046635,-745.80682386,0.00013,2]
[346689557,1735185046647,-251.1300001,0.00013,2]
[346689558,1735185047037,-59283.0,0.00013,2]
[346689565,1735185734474,150.0,0.00021,120]
[346689567,1735185881753,10000.0,9e-05,2]
[346689570,1735185991126,-208.49900453,0.00010233,2]
[346689583,1735186232599,-160.40676,9.643e-05,2]
[346689584,1735186232610,-157.197615,9.643e-05,2]
[346689585,1735186232623,-687.40524391,9.643e-05,2]
[346689603,1735186238307,-139.79070909,9.643e-05,2]
[346689604,1735186238317,-861.84483,9.643e-05,2]
[346689605,1735186238327,-300.0,9.644e-05,2]
[346689606,1735186238336,-827.195953,9.645e-05,2]
[346689607,1735186238345,-784.68778808,9.645e-05,2]
[346689608,1735186238386,-77.15704192,9.645e-05,2]
[346689609,1735186238395,-827.195953,9.646e-05,2]